fUSD/lending_fUSD_20260506
["ID","MTS","AMOUNT","RATE_DAILY","PERIOD"]
[421655959,1778031938000,-300.0,9.999e-05,2]
[421655958,1778031938000,-292.67,9.843e-05,2]
[421655962,1778031938000,-1212.43932453,0.0001,2]
[421655957,1778031938000,-292.67,9.526e-05,2]
[421655960,1778031938000,-1200.0,9.999e-05,2]
[421655961,1778031938000,-300.0,9.999e-05,2]
[421655963,1778032012000,-157.56236038,9.999e-05,2]
[421655966,1778032037000,-394.42716183,0.0001,2]
[421655964,1778032037000,-372.74301283,0.0001,2]
[421655965,1778032037000,-252.39324717,0.0001,2]
[421655968,1778032149000,-2725.39287451,0.0001,2]
[421655969,1778032149000,-205.98583265,0.00010061,2]
[421655971,1778032149000,-292.67,0.00010478,2]
[421655970,1778032149000,-292.67,0.00010161,2]
[421655972,1778032149000,-300.0,0.00010651,2]
[421655975,1778032149000,-150.0,0.00010699,2]
[421655976,1778032149000,-8484.57167073,0.000107,2]
[421655973,1778032149000,-205.98583264,0.00010652,2]
[421655974,1778032149000,-159.61374998,0.00010699,2]
[421655977,1778032157000,-777.052927,0.000107,2]
[421655979,1778032158000,-1146.07066656,0.000107,2]
[421655978,1778032158000,-3797.82451344,0.00010652,2]
[421655980,1778032162000,-477.89281954,0.000107,2]
[421655981,1778032169000,-39632.97282,0.000107,2]
[421656026,1778032232000,-214.95,0.00012186,2]
[421656007,1778032232000,-199.0,0.00011737,2]
[421656009,1778032232000,-1680.0,0.00011769,2]
[421656012,1778032232000,-423.37705159,0.00012065,2]
[421656015,1778032232000,-500.0,0.00012065,2]
[421656014,1778032232000,-500.0,0.00012065,2]
[421656016,1778032232000,-500.0,0.00012065,2]
[421656013,1778032232000,-500.0,0.00012065,2]
[421656021,1778032232000,-502.76984421,0.00012167,2]
[421656037,1778032232000,-1000.0,0.00012748,2]
[421656004,1778032232000,-292.67,0.00011431,2]
[421656019,1778032232000,-308.38918644,0.00012065,2]
[421656022,1778032232000,-999.99,0.00012186,2]
[421656018,1778032232000,-500.0,0.00012065,2]
[421656024,1778032232000,-9125.23,0.00012186,2]
[421656020,1778032232000,-292.67,0.00012066,2]
[421656023,1778032232000,-7676.38,0.00012186,2]
[421656027,1778032232000,-150.99,0.00012186,2]
[421656025,1778032232000,-9999.99,0.00012186,2]
[421656017,1778032232000,-500.0,0.00012065,2]
[421656008,1778032232000,-292.67,0.00011749,2]
[421655993,1778032232000,-60488.71840194,0.000107,2]
[421656011,1778032232000,-166.55,0.00011973,2]
[421656036,1778032232000,-285.03778927,0.00012748,2]
[421655983,1778032232000,-1200.0,0.00010699,2]
[421655984,1778032232000,-92.2457146,0.00010699,2]
[421655988,1778032232000,-2592.94642396,0.000107,2]
[421655989,1778032232000,-468.75595281,0.000107,2]
[421655990,1778032232000,-2212.01251569,0.000107,2]
[421655987,1778032232000,-207.7542854,0.00010699,2]
[421655998,1778032232000,-48056.00979473,0.00011,2]
[421655994,1778032232000,-5245.20336567,0.000107,2]
[421656005,1778032232000,-165.81,0.00011479,2]
[421655995,1778032232000,-200.0,0.00010752,2]
[421655996,1778032232000,-292.67,0.00010796,2]
[421655997,1778032232000,-2000.0,0.00010861,2]
[421655992,1778032232000,-6272.81329441,0.000107,2]
[421656000,1778032232000,-292.67,0.00011114,2]
[421656010,1778032232000,-250.47591467,0.0001177,2]
[421656001,1778032232000,-500.0,0.00011354,2]
[421655999,1778032232000,-12568.76703791,0.00011,2]
[421656003,1778032232000,-8305.03,0.00011373,2]
[421656002,1778032232000,-1188.83,0.00011373,2]
[421655991,1778032232000,-584.67717674,0.000107,2]
[421656030,1778032232000,-622.91719053,0.000122,2]
[421656006,1778032232000,-204.33,0.000116,2]
[421656029,1778032232000,-500.0,0.000122,2]
[421656052,1778032232000,-150.0,0.00013488,2]
[421656054,1778032232000,-151.74680912,0.00013488,2]
[421656057,1778032232000,-150.0,0.00013488,2]
[421656058,1778032232000,-150.0,0.00013488,2]
[421656062,1778032232000,-500.0,0.00013568,2]
[421656060,1778032232000,-386.87771114,0.00013568,2]
[421656064,1778032232000,-151.0,0.00013569,2]
[421656063,1778032232000,-373.34339256,0.00013568,2]
[421656065,1778032232000,-547.201418,0.00013569,2]
[421656055,1778032232000,-150.87735315,0.00013488,2]
[421656067,1778032232000,-547.201418,0.00013569,2]
[421656068,1778032232000,-547.201418,0.00013569,2]
[421656070,1778032232000,-626.523729,0.00013569,2]
[421656028,1778032232000,-165.81,0.00012197,2]
[421656066,1778032232000,-547.201418,0.00013569,2]
[421656074,1778032232000,-151.0,0.00013569,2]
[421656072,1778032232000,-626.523729,0.00013569,2]
[421656075,1778032232000,-151.0,0.00013569,2]
[421656073,1778032232000,-626.523729,0.00013569,2]
[421656077,1778032232000,-170028.29910508,0.00013569,2]
[421656071,1778032232000,-626.523729,0.00013569,2]
[421656076,1778032232000,-151.0,0.00013569,2]
[421656069,1778032232000,-151.0,0.00013569,2]
[421656056,1778032232000,-150.0,0.00013488,2]
[421656031,1778032232000,-500.0,0.000122,2]
[421656035,1778032232000,-318.62,0.00012658,2]
[421656033,1778032232000,-834.32,0.00012422,2]
[421656032,1778032232000,-2000.0,0.00012219,2]
[421656034,1778032232000,-5773.37,0.00012423,2]
[421656040,1778032232000,-502.0,0.00013041,2]
[421656045,1778032232000,-2218.09022887,0.00013469,2]
[421656044,1778032232000,-1695.69528324,0.00013423,2]
[421656039,1778032232000,-2351.0,0.00012946,2]
[421656059,1778032232000,-212.51692994,0.00013532,2]
[421656041,1778032232000,-218.53,0.00013091,2]
[421656038,1778032232000,-165.81,0.00012914,2]
[421656043,1778032232000,-506.15979396,0.00013296,2]
[421656047,1778032232000,-1035.42464449,0.00013473,2]
[421656048,1778032232000,-156.70471661,0.00013488,2]
[421656049,1778032232000,-150.0,0.00013488,2]
[421656050,1778032232000,-150.83883825,0.00013488,2]
[421656051,1778032232000,-150.0,0.00013488,2]
[421656053,1778032232000,-150.0,0.00013488,2]
[421656061,1778032232000,-500.0,0.00013568,2]
[421656042,1778032232000,-162.78,0.00013154,2]
[421656078,1778032233000,-3180.78792267,0.00013569,2]
[421656079,1778032233000,-1763.97926805,0.00013569,2]
[421656080,1778032233000,-544.02,0.00013569,2]
[421656083,1778032233000,-491.0360497,0.00013569,2]
[421656081,1778032233000,-1232.68337832,0.00013569,2]
[421656084,1778032233000,-342.48315084,0.00013569,2]
[421656082,1778032233000,-351.02307539,0.00013569,2]
[421656089,1778032238000,-3992.25905905,0.00013569,2]
[421656088,1778032238000,-3115.23909798,0.00013569,2]
[421656087,1778032238000,-380.52932165,0.00013569,2]
[421656086,1778032238000,-27716.97012771,0.00013569,2]
[421656115,1778032241000,-1190.0,0.00013569,2]
[421656114,1778032241000,-23538.99503466,0.00013569,2]
[421656111,1778032241000,-516.70824417,0.00013569,2]
[421656108,1778032241000,-308.02,0.00012757,2]
[421656110,1778032241000,-421.29620004,0.00013569,2]
[421656113,1778032241000,-113.28482465,0.00013569,2]
[421656117,1778032242000,-1068.32136773,0.00013569,2]
[421656116,1778032242000,-578.29373025,0.00013569,2]
[421656145,1778032243000,-500.00977562,0.00013569,2]
[421656144,1778032243000,-710.21780459,0.00013569,2]
[421656143,1778032243000,-365002.07999661,0.00013569,2]
[421656150,1778032246000,-49806.64642888,0.00013569,2]
[421656149,1778032246000,-21323.7281573,0.00013569,2]
[421656148,1778032246000,-19303.96738298,0.00013569,2]
[421656146,1778032246000,-658.03402278,0.00013569,2]
[421656147,1778032246000,-122855.7770156,0.00013569,2]
[421656189,1778032308000,2160.3,0.00030137,120]
[421656190,1778032377000,209.32,0.00030137,120]
[421656191,1778032946000,709.0075,0.00030127,120]
[421656192,1778033020000,274.46,6.211e-05,2]
[421656193,1778033020000,274.46,6.537e-05,2]
[421656194,1778033020000,274.46,6.864e-05,2]
[421656198,1778033021000,274.46,8.172e-05,2]
[421656197,1778033021000,274.46,7.845e-05,2]
[421656196,1778033021000,274.46,7.518e-05,2]
[421656195,1778033021000,274.46,7.191e-05,2]
[421656199,1778033031000,-246.74,8.499e-05,2]
[421656200,1778033079000,707.2905,0.00030127,120]
[421656202,1778033104000,-2911.72230323,8.825e-05,2]
[421656201,1778033104000,-27.72,8.499e-05,2]
[421656204,1778033104000,-274.46,9.152e-05,2]
[421656205,1778033104000,-274.46,9.479e-05,2]
[421656206,1778033104000,-274.46,9.806e-05,2]
[421656203,1778033104000,-274.46,8.826e-05,2]
[421656208,1778033145000,-274.46,0.0001046,2]
[421656207,1778033145000,-274.46,0.00010133,2]
[421656210,1778033145000,-274.46,0.00011114,2]
[421656209,1778033145000,-274.46,0.00010787,2]
[421656214,1778033145000,-193.96,0.00011919,2]
[421656212,1778033145000,-274.46,0.00011767,2]
[421656213,1778033145000,-900.63,0.00011849,2]
[421656215,1778033145000,-1210.16,0.00011975,2]
[421656216,1778033145000,-1071.42811414,0.00012033,2]
[421656211,1778033145000,-274.46,0.00011441,2]
[421656220,1778033174000,-4245.29,0.00012087,2]
[421656219,1778033174000,-300.0,0.00012086,2]
[421656218,1778033174000,-300.0,0.00012086,2]
[421656217,1778033174000,-154.71,9.634e-05,2]
[421656221,1778033175000,-5000.0,0.00012025,2]
[421656224,1778033176000,-274.46,0.00012094,2]
[421656223,1778033176000,-526.61,0.00012087,2]
[421656225,1778033176000,-167.327466,0.00012146,2]
[421656226,1778033176000,-733.302534,0.00012146,2]
[421656222,1778033176000,-4031.602534,0.00012025,2]
[421656228,1778033176000,-300.0,0.00012408,2]
[421656232,1778033176000,-5000.0,0.00012411,2]
[421656230,1778033176000,-643.64,0.00012411,2]
[421656227,1778033176000,-300.0,0.00012408,2]
[421656229,1778033176000,-1200.0,0.00012408,2]
[421656231,1778033176000,-1823.057466,0.00012411,2]
[421656233,1778033177000,-5000.0,0.00012411,2]
[421656234,1778033177000,-188.11636194,0.00012411,2]
[421656237,1778033177000,-200.0,0.0001251,2]
[421656235,1778033177000,-274.46,0.00012421,2]
[421656236,1778033177000,-900.63,0.00012442,2]
[421656238,1778033177000,-594.41,0.00012634,2]
[421656242,1778033177000,-512.75363806,0.00012769,2]
[421656241,1778033177000,-900.63,0.00012738,2]
[421656245,1778033177000,-286.24644495,0.00012798,2]
[421656243,1778033177000,-1487.24636194,0.00012769,2]
[421656244,1778033177000,-1000.0,0.00012787,2]
[421656239,1778033177000,-520.8,0.00012679,2]
[421656240,1778033177000,-908.2,0.00012697,2]
[421656246,1778033241000,-236.62140863,0.00012736,2]
[421656247,1778033292000,161.2,0.0002,30]
[421656249,1778033293000,161.2,0.00024,60]
[421656248,1778033293000,161.2,0.00022,30]
[421656250,1778033349000,-163.08,0.00012565,2]
[421656252,1778033349000,-8013.097976,0.00012737,2]
[421656251,1778033349000,-300.0,0.00012736,2]
[421656253,1778033365000,181.16,0.00022,30]
[421656265,1778033432000,-1000.0,0.00013053,2]
[421656262,1778033432000,-900.63,0.00013034,2]
[421656261,1778033432000,-160.91,0.00013032,2]
[421656263,1778033432000,-300.0,0.00013052,2]
[421656269,1778033432000,-17461.80483082,0.00013054,2]
[421656270,1778033432000,-3994.67377688,0.00013054,2]
[421656260,1778033432000,-1296.10387595,0.00012737,2]
[421656259,1778033432000,-1894.42033482,0.00012737,2]
[421656266,1778033432000,-2178.816,0.00013053,2]
[421656267,1778033432000,-208.336,0.00013053,2]
[421656257,1778033432000,-1200.0,0.00012736,2]
[421656258,1778033432000,-5244.33781323,0.00012737,2]
[421656264,1778033432000,-173.0,0.00013052,2]
[421656268,1778033432000,-150.0,0.00013053,2]
[421656272,1778033432000,-2133.4095823,0.00013054,2]
[421656277,1778033432000,-150.99,0.00013147,2]
[421656281,1778033432000,-13421.70394692,0.00013162,2]
[421656291,1778033432000,-720.22605909,0.00013162,2]
[421656286,1778033432000,-444.0,0.00013162,2]
[421656295,1778033432000,-24948.92004377,0.00013162,2]
[421656284,1778033432000,-2060.33272966,0.00013162,2]
[421656278,1778033432000,-1194.41,0.00013147,2]
[421656273,1778033432000,-19260.1408389,0.00013054,2]
[421656271,1778033432000,-28396.6959298,0.00013054,2]
[421656280,1778033432000,-151.0,0.00013159,2]
[421656275,1778033432000,-201.30015202,0.00013055,2]
[421656282,1778033432000,-356.44950306,0.00013162,2]
[421656274,1778033432000,-282.2457893,0.00013054,2]
[421656279,1778033432000,-999.99,0.00013147,2]
[421656276,1778033432000,-16447.83557515,0.00013103,2]
[421656288,1778033432000,-643.82857995,0.00013162,2]
[421656342,1778033438000,-500.0,0.00013161,2]
[421656340,1778033438000,-500.0,0.00013161,2]
[421656344,1778033438000,-500.0,0.00013161,2]
[421656341,1778033438000,-500.0,0.00013161,2]
[421656345,1778033438000,-500.0,0.00013161,2]
[421656347,1778033438000,-500.0,0.00013161,2]
[421656348,1778033438000,-500.0,0.00013161,2]
[421656339,1778033438000,-500.0,0.00013161,2]
[421656349,1778033438000,-500.0,0.00013161,2]
[421656350,1778033438000,-500.0,0.00013161,2]
[421656360,1778033438000,-208402.4344592,0.00013203,2]
[421656346,1778033438000,-500.0,0.00013161,2]
[421656343,1778033438000,-500.0,0.00013161,2]
[421656328,1778033438000,-500.0,0.00013161,2]
[421656332,1778033438000,-500.0,0.00013161,2]
[421656331,1778033438000,-500.0,0.00013161,2]
[421656329,1778033438000,-500.0,0.00013161,2]
[421656333,1778033438000,-500.0,0.00013161,2]
[421656327,1778033438000,-518.72617076,0.00013161,2]
[421656351,1778033438000,-500.0,0.00013161,2]
[421656337,1778033438000,-500.0,0.00013161,2]
[421656338,1778033438000,-500.0,0.00013161,2]
[421656336,1778033438000,-500.0,0.00013161,2]
[421656335,1778033438000,-500.0,0.00013161,2]
[421656324,1778033438000,-93.11923763,0.00013161,2]
[421656326,1778033438000,-121.68391011,0.00013161,2]
[421656323,1778033438000,-500.0,0.00013161,2]
[421656330,1778033438000,-379.34086644,0.00013161,2]
[421656353,1778033438000,-24244.89,0.00013162,2]
[421656334,1778033438000,-418.84466455,0.00013161,2]
[421656361,1778033438000,-3301.5090932,0.00013203,2]
[421656362,1778033438000,-409.03726711,0.00013273,2]
[421656394,1778033438000,-165.81,0.00013632,2]
[421656378,1778033438000,-150.0,0.00013488,2]
[421656382,1778033438000,-150.0,0.00013488,2]
[421656384,1778033438000,-310.0,0.00013562,3]
[421656392,1778033438000,-6690.78,0.00013608,2]
[421656386,1778033438000,-151.0,0.00013569,2]
[421656390,1778033438000,-1423.83,0.00013608,2]
[421656380,1778033438000,-150.0,0.00013488,2]
[421656376,1778033438000,-150.0,0.00013488,2]
[421656374,1778033438000,-150.0,0.00013488,2]
[421656368,1778033438000,-242.82,0.000133,2]
[421656370,1778033438000,-500.0,0.00013469,2]
[421656369,1778033438000,-151.0,0.00013437,2]
[421656388,1778033438000,-150.0,0.00013603,2]
[421656371,1778033438000,-494.89983353,0.00013476,2]
[421656367,1778033438000,-516.94609672,0.00013296,2]
[421656354,1778033438000,-9999.99,0.00013162,2]
[421656355,1778033438000,-4793.25,0.00013162,2]
[421656357,1778033438000,-500.0,0.00013202,2]
[421656359,1778033438000,-611.34037479,0.00013202,2]
[421656358,1778033438000,-620.8143978,0.00013202,2]
[421656352,1778033438000,-126591.42654175,0.00013162,2]
[421656364,1778033438000,-166.75088647,0.00013273,2]
[421656363,1778033438000,-500.0,0.00013273,2]
[421656365,1778033438000,-500.0,0.00013273,2]
[421656373,1778033438000,-150.0,0.00013488,2]
[421656366,1778033438000,-500.0,0.00013273,2]
[421656372,1778033438000,-150.0,0.00013488,2]
[421656356,1778033438000,-210.6485892,0.000132,2]
[421656480,1778033439000,-499.87729159,0.0001402,2]
[421656487,1778033439000,-642780.1903,0.00014021,2]
[421656489,1778033439000,-151.0,0.00014021,2]
[421656485,1778033439000,-501.49544532,0.0001402,2]
[421656468,1778033439000,-300.0,0.00014011,2]
[421656483,1778033439000,-515.79571264,0.0001402,2]
[421656470,1778033439000,-300.0,0.00014011,2]
[421656456,1778033439000,-250.0,0.00014,2]
[421656466,1778033439000,-300.0,0.00014011,2]
[421656474,1778033439000,-151.0,0.00014018,2]
[421656472,1778033439000,-303.73475565,0.00014011,2]
[421656464,1778033439000,-300.0,0.00014011,2]
[421656497,1778033439000,-500.0,0.00014073,2]
[421656478,1778033439000,-507.63600712,0.0001402,2]
[421656476,1778033439000,-155.42950694,0.00014018,2]
[421656491,1778033439000,-151.0,0.00014021,2]
[421656495,1778033439000,-150.0,0.00014064,2]
[421656493,1778033439000,-151.0,0.00014021,2]
[421656499,1778033439000,-266.28015395,0.00014073,2]
[421656508,1778033439000,-255.0,0.00014163,2]
[421656507,1778033439000,-168.58,0.00014155,2]
[421656510,1778033439000,-150.0,0.00014179,2]
[421656514,1778033439000,-7548.36381456,0.0001425,2]
[421656512,1778033439000,-150.0,0.00014237,2]
[421656516,1778033439000,-92606.11498224,0.0001425,2]
[421656458,1778033439000,-188.33976483,0.0001401,2]
[421656482,1778033439000,-504.22692404,0.0001402,2]
[421656448,1778033439000,-150.0,0.00013949,2]
[421656431,1778033439000,-400.0,0.000138,5]
[421656452,1778033439000,-150.0,0.00013987,2]
[421656518,1778033439000,-160.91,0.00014273,2]
[421656398,1778033439000,-500.0,0.00013698,2]
[421656396,1778033439000,-500.0,0.00013698,2]
[421656402,1778033439000,-500.0,0.00013698,2]
[421656410,1778033439000,-168.58,0.00013699,2]
[421656400,1778033439000,-500.0,0.00013698,2]
[421656414,1778033439000,-408.0,0.00013699,2]
[421656416,1778033439000,-187.17557981,0.00013699,2]
[421656412,1778033439000,-5226.08,0.00013699,2]
[421656406,1778033439000,-200.0,0.00013699,2]
[421656408,1778033439000,-2500.0,0.00013699,2]
[421656418,1778033439000,-154.0,0.00013699,2]
[421656421,1778033439000,-154.0,0.00013699,2]
[421656425,1778033439000,-150.0,0.00013718,2]
[421656423,1778033439000,-154.0,0.00013699,2]
[421656427,1778033439000,-168.71,0.00013732,2]
[421656429,1778033439000,-12847.12648256,0.00013736,2]
[421656434,1778033439000,-305.63599968,0.00013821,2]
[421656436,1778033439000,-2000.0,0.00013826,2]
[421656433,1778033439000,-1000.0,0.00013821,2]
[421656440,1778033439000,-900.0,0.000139,5]
[421656442,1778033439000,-5000.0,0.00013921,2]
[421656438,1778033439000,-150.0,0.00013834,2]
[421656444,1778033439000,-10598.58992053,0.00013921,2]
[421656446,1778033439000,-168.58,0.00013927,2]
[421656462,1778033439000,-609.51451129,0.00014011,2]
[421656461,1778033439000,-1680.0,0.0001401,2]
[421656450,1778033439000,-834.32,0.00013974,2]
[421656520,1778033439000,-908.2,0.00014284,2]
[421656404,1778033439000,-478.0,0.00013698,2]
[421656505,1778033439000,-6911.64993828,0.00014124,2]
[421656594,1778033439000,-500.0,0.00014699,2]
[421656589,1778033439000,-500.0,0.00014699,2]
[421656591,1778033439000,-500.0,0.00014699,2]
[421656587,1778033439000,-151.0,0.00014699,2]
[421656585,1778033439000,-410.130107,0.00014699,2]
[421656596,1778033439000,-500.0,0.00014699,2]
[421656598,1778033439000,-500.0,0.00014699,2]
[421656612,1778033439000,-500.0,0.00014699,2]
[421656614,1778033439000,-500.0,0.00014699,2]
[421656616,1778033439000,-500.0,0.00014699,2]
[421656600,1778033439000,-500.0,0.00014699,2]
[421656607,1778033439000,-500.0,0.00014699,2]
[421656609,1778033439000,-500.0,0.00014699,2]
[421656602,1778033439000,-500.0,0.00014699,2]
[421656618,1778033439000,-500.0,0.00014699,2]
[421656620,1778033439000,-500.0,0.00014699,2]
[421656604,1778033439000,-500.0,0.00014699,2]
[421656622,1778033439000,-500.0,0.00014699,2]
[421656637,1778033439000,-186.15130422,0.00014699,2]
[421656641,1778033439000,-491.72360666,0.00014699,2]
[421656633,1778033439000,-500.0,0.00014699,2]
[421656635,1778033439000,-500.0,0.00014699,2]
[421656631,1778033439000,-500.0,0.00014699,2]
[421656639,1778033439000,-500.0,0.00014699,2]
[421656625,1778033439000,-500.0,0.00014699,2]
[421656629,1778033439000,-500.0,0.00014699,2]
[421656502,1778033439000,-502.02246795,0.00014073,2]
[421656575,1778033439000,-1243.0,0.00014699,5]
[421656581,1778033439000,-410.130107,0.00014699,2]
[421656627,1778033439000,-500.0,0.00014699,2]
[421656579,1778033439000,-410.130107,0.00014699,2]
[421656583,1778033439000,-151.0,0.00014699,2]
[421656501,1778033439000,-500.54127228,0.00014073,2]
[421656524,1778033439000,-176.0,0.00014313,2]
[421656522,1778033439000,-150.0,0.00014295,2]
[421656532,1778033439000,-1007.37555556,0.00014368,2]
[421656530,1778033439000,-2000.0,0.00014365,2]
[421656534,1778033439000,-368.2377109,0.00014373,2]
[421656543,1778033439000,-725.190658,0.00014405,2]
[421656540,1778033439000,-706.907393,0.00014405,2]
[421656545,1778033439000,-8199.035442,0.00014405,2]
[421656536,1778033439000,-168.58,0.00014384,2]
[421656538,1778033439000,-255.613125,0.00014405,2]
[421656547,1778033439000,-670.984453,0.00014405,2]
[421656526,1778033439000,-165.81,0.00014349,2]
[421656553,1778033439000,-1519.56982,0.00014485,2]
[421656551,1778033439000,-192.938828,0.00014485,2]
[421656573,1778033439000,-16447.83557508,0.0001468,2]
[421656562,1778033439000,-200.0,0.00014588,2]
[421656577,1778033439000,-410.130107,0.00014699,2]
[421656554,1778033439000,-150.0,0.00014487,2]
[421656568,1778033439000,-858.0,0.00014632,5]
[421656570,1778033439000,-150.0,0.0001464,2]
[421656561,1778033439000,-150.0,0.00014525,2]
[421656557,1778033439000,-578.88374,0.00014487,2]
[421656564,1778033439000,-12563.3293,0.000146,2]
[421656559,1778033439000,-6690.78,0.00014497,2]
[421656549,1778033439000,-150.0,0.0001441,2]
[421656566,1778033439000,-1221.0,0.00014623,2]
[421656737,1778033440000,-423.0,0.00014699,2]
[421656720,1778033440000,-500.0,0.00014699,2]
[421656739,1778033440000,-423.0,0.00014699,2]
[421656741,1778033440000,-500.0,0.00014699,2]
[421656743,1778033440000,-517.59719864,0.00014699,2]
[421656728,1778033440000,-500.0,0.00014699,2]
[421656730,1778033440000,-423.0,0.00014699,2]
[421656732,1778033440000,-234.64426492,0.00014699,2]
[421656735,1778033440000,-423.0,0.00014699,2]
[421656755,1778033440000,-423.0,0.00014699,2]
[421656750,1778033440000,-423.0,0.00014699,2]
[421656746,1778033440000,-423.0,0.00014699,2]
[421656752,1778033440000,-423.0,0.00014699,2]
[421656757,1778033440000,-150.0,0.00014699,2]
[421656759,1778033440000,-150.0,0.00014699,2]
[421656763,1778033440000,-150.0,0.00014699,2]
[421656761,1778033440000,-150.0,0.00014699,2]
[421656716,1778033440000,-423.0,0.00014699,2]
[421656765,1778033440000,-218.61009254,0.00014699,2]
[421656748,1778033440000,-423.0,0.00014699,2]
[421656724,1778033440000,-423.0,0.00014699,2]
[421656654,1778033440000,-500.0,0.00014699,2]
[421656709,1778033440000,-423.0,0.00014699,2]
[421656767,1778033440000,-423.0,0.00014699,2]
[421656643,1778033440000,-423.0,0.00014699,2]
[421656645,1778033440000,-500.0,0.00014699,2]
[421656647,1778033440000,-423.0,0.00014699,2]
[421656649,1778033440000,-500.0,0.00014699,2]
[421656651,1778033440000,-423.0,0.00014699,2]
[421656663,1778033440000,-500.0,0.00014699,2]
[421656667,1778033440000,-423.0,0.00014699,2]
[421656657,1778033440000,-423.0,0.00014699,2]
[421656670,1778033440000,-500.0,0.00014699,2]
[421656674,1778033440000,-423.0,0.00014699,2]
[421656679,1778033440000,-500.0,0.00014699,2]
[421656687,1778033440000,-500.0,0.00014699,2]
[421656683,1778033440000,-423.0,0.00014699,2]
[421656703,1778033440000,-423.0,0.00014699,2]
[421656691,1778033440000,-423.0,0.00014699,2]
[421656706,1778033440000,-500.0,0.00014699,2]
[421656699,1778033440000,-500.0,0.00014699,2]
[421656695,1778033440000,-500.0,0.00014699,2]
[421656712,1778033440000,-500.0,0.00014699,2]
[421656780,1778033440000,-500.0,0.00014699,2]
[421656804,1778033440000,-446.25809725,0.00014699,2]
[421656786,1778033440000,-500.0,0.00014699,2]
[421656824,1778033440000,-500.0,0.00014699,2]
[421656834,1778033440000,-500.0,0.00014699,2]
[421656826,1778033440000,-273.61549173,0.00014699,2]
[421656829,1778033440000,-226.38450827,0.00014699,2]
[421656830,1778033440000,-500.0,0.00014699,2]
[421656836,1778033440000,-500.0,0.00014699,2]
[421656838,1778033440000,-500.0,0.00014699,2]
[421656842,1778033440000,-500.0,0.00014699,2]
[421656840,1778033440000,-493.40619236,0.00014699,2]
[421656832,1778033440000,-500.0,0.00014699,2]
[421656844,1778033440000,-500.0,0.00014699,2]
[421656782,1778033440000,-500.0,0.00014699,2]
[421656847,1778033440000,-628.58928362,0.00014699,2]
[421656849,1778033440000,-151.0,0.00014699,2]
[421656851,1778033440000,-151.0,0.00014699,2]
[421656853,1778033440000,-151.0,0.00014699,2]
[421656855,1778033440000,-3625.0,0.00014699,2]
[421656857,1778033440000,-6043.0,0.00014699,2]
[421656859,1778033440000,-2598.52096621,0.000147,2]
[421656822,1778033440000,-500.0,0.00014699,2]
[421656818,1778033440000,-158.91321431,0.00014699,2]
[421656845,1778033440000,-500.0,0.00014699,2]
[421656816,1778033440000,-167.0,0.00014699,2]
[421656771,1778033440000,-500.0,0.00014699,2]
[421656820,1778033440000,-500.0,0.00014699,2]
[421656788,1778033440000,-500.0,0.00014699,2]
[421656784,1778033440000,-500.0,0.00014699,2]
[421656775,1778033440000,-500.0,0.00014699,2]
[421656769,1778033440000,-500.0,0.00014699,2]
[421656778,1778033440000,-500.0,0.00014699,2]
[421656792,1778033440000,-500.0,0.00014699,2]
[421656790,1778033440000,-500.0,0.00014699,2]
[421656794,1778033440000,-423.0,0.00014699,2]
[421656773,1778033440000,-500.0,0.00014699,2]